bitfinex-derivatives/quotes_BTCF0:USTF0_20241117
["timestamp","ask_amount","ask_price","bid_price","bid_amount"]
[1731884876380,0.00640419,89698.0,89697.0,0.00013616]
[1731884877886,0.00740419,89698.0,89697.0,0.00013616]
[1731884878380,0.00340419,89698.0,89697.0,0.00013616]
[1731884878573,0.00740419,89698.0,89697.0,0.00013616]
[1731884880287,0.33448,89697.0,89661.0,0.08598585]
[1731884880488,0.055747,89678.0,89673.0,0.055749]
[1731884880686,0.00140419,89676.0,89674.0,0.3608]
[1731884880893,0.055749,89674.0,89661.0,0.08598585]
[1731884881089,0.055751,89671.0,89666.0,0.055753]
[1731884881293,0.055751,89671.0,89669.0,0.3608]
[1731884881795,0.00140419,89670.0,89668.0,0.055752]
[1731884881977,0.00140419,89670.0,89667.0,0.00010766]
[1731884881978,0.055752,89669.0,89667.0,0.00010766]
[1731884882583,0.055752,89669.0,89668.0,0.3608]
[1731884882783,0.05715619,89669.0,89667.0,0.00010766]
[1731884883089,0.05815619,89669.0,89667.0,0.01710766]
[1731884883293,0.05915619,89669.0,89667.0,0.03010766]
[1731884883894,0.00140419,89668.0,89667.0,0.01710766]
[1731884884087,0.00140419,89668.0,89667.0,0.02110766]
[1731884884695,0.00140419,89668.0,89667.0,0.00410766]
[1731884885302,0.00140419,89668.0,89667.0,0.05986066]
[1731884885481,0.00240419,89668.0,89667.0,0.39442066]
[1731884885683,0.055735,89696.0,89680.0,0.055745]
[1731884885981,0.0052,89694.0,89693.0,0.055737]
[1731884886191,0.00167298,89698.0,89696.0,0.055735]
[1731884886602,0.0052,89710.0,89697.0,0.33444]
[1731884886889,0.033,89719.0,89691.0,0.36144]
[1731884886890,0.00012881,89707.0,89691.0,0.36144]
[1731884887086,0.00012881,89707.0,89699.0,0.3608]
[1731884887482,0.05573,89705.0,89703.0,0.05573]
[1731884887685,0.00012881,89707.0,89699.0,0.3608]
[1731884887994,0.055732,89701.0,89699.0,0.3608]
[1731884888293,0.055734,89698.0,89691.0,0.3608]
[1731884888799,0.055734,89698.0,89695.0,0.055736]
[1731884889584,0.057734,89698.0,89695.0,0.055736]
[1731884889894,0.057734,89698.0,89691.0,0.3608]
[1731884889895,0.002,89698.0,89691.0,0.3608]
[1731884890191,0.055737,89692.0,89691.0,0.3608]
[1731884890579,0.3608,89696.0,89686.0,0.3608]
[1731884890779,0.3608,89696.0,89678.0,0.05741853]
[1731884890780,0.416541,89687.0,89678.0,0.00167253]
[1731884890979,0.19752,89695.0,89678.0,0.00167253]
[1731884891194,0.055743,89685.0,89684.0,0.055742]
[1731884891385,0.055743,89684.0,89679.0,0.055745]
[1731884891578,0.19752,89695.0,89678.0,0.00167253]
[1731884891579,0.55832,89695.0,89678.0,0.00167253]
[1731884891790,0.055746,89679.0,89678.0,0.00167253]
[1731884893396,0.3608,89679.0,89667.0,0.00010766]
[1731884893607,0.416552,89668.0,89667.0,0.00010766]
[1731884893898,0.582272,89668.0,89667.0,0.00010766]
[1731884895086,0.583272,89668.0,89667.0,0.00010766]
[1731884895891,0.583312,89668.0,89667.0,0.00010766]
[1731884896396,0.584312,89668.0,89667.0,0.00010766]
[1731884896787,0.057752,89668.0,89667.0,0.00010766]
[1731884896997,0.002,89668.0,89667.0,0.00010766]
[1731884899603,0.0052,89681.0,89679.0,0.055745]
[1731884899791,0.05574,89689.0,89679.0,0.055745]
[1731884899994,0.13283384,89692.0,89679.0,0.055745]
[1731884900193,0.05574,89688.0,89679.0,0.055745]
[1731884900596,0.05574,89688.0,89680.0,0.055744]
[1731884900805,0.0052,89693.0,89675.0,0.3608]
[1731884900991,0.0052,89693.0,89692.0,0.055737]
[1731884901189,0.13283384,89704.0,89703.0,0.055731]
[1731884901395,0.00012881,89707.0,89700.0,0.12904133]
[1731884901699,0.00012881,89707.0,89705.0,0.055729]
[1731884902802,0.00212881,89707.0,89705.0,0.055729]
[1731884903903,0.055734,89698.0,89690.0,0.055739]
[1731884904202,0.00512881,89707.0,89689.0,0.3608]
[1731884904502,0.055738,89692.0,89689.0,0.3608]
[1731884905096,0.005,89698.0,89689.0,0.3608]
[1731884905297,0.055734,89697.0,89689.0,0.416539]
[1731884905799,0.058738,89692.0,89689.0,0.416539]
[1731884906007,0.055739,89691.0,89689.0,0.3608]
[1731884906408,0.055739,89691.0,89690.0,0.3608]
[1731884906705,0.003,89692.0,89690.0,0.3608]
[1731884906706,0.003,89692.0,89690.0,0.416538]
[1731884907012,0.005,89692.0,89691.0,0.46352133]
[1731884907220,0.002,89692.0,89691.0,0.49362133]
[1731884907698,0.003,89698.0,89697.0,0.055734]
[1731884908008,0.003,89692.0,89691.0,0.21555933]
[1731884908209,0.003,89692.0,89691.0,0.21487933]
[1731884908396,0.002,89692.0,89691.0,0.085838]
[1731884908597,0.005,89692.0,89691.0,0.085838]
[1731884909012,0.002,89692.0,89690.0,0.38867]
[1731884909197,0.055738,89691.0,89690.0,0.02787]
[1731884909613,0.087938,89691.0,89690.0,0.02787]
[1731884911098,0.089938,89691.0,89690.0,0.02787]
[1731884911505,0.092938,89691.0,89690.0,0.02787]
[1731884913003,0.56051055,89691.0,89690.0,0.02787]
[1731884913202,0.055744,89682.0,89676.0,0.0016726]
[1731884913405,0.580704,89682.0,89665.0,0.0052]
[1731884913606,0.71380764,89682.0,89665.0,0.0052]
[1731884913804,0.580704,89682.0,89665.0,0.0052]
[1731884914407,0.580704,89682.0,89681.0,0.01592]
[1731884914608,0.220904,89682.0,89681.0,0.02792]
[1731884915607,0.35405675,89682.0,89681.0,0.02792]
[1731884915910,0.71485675,89682.0,89681.0,0.02792]
[1731884916114,0.581704,89682.0,89681.0,0.02792]
[1731884916310,0.581704,89682.0,89681.0,0.02092]
[1731884916311,0.583704,89682.0,89681.0,0.02092]
[1731884916711,0.582704,89682.0,89681.0,0.00892]
[1731884917011,0.055752,89668.0,89665.0,0.0052]
[1731884917202,0.055752,89668.0,89649.0,0.19993553]
[1731884917203,0.416552,89668.0,89651.0,0.3608]
[1731884918708,0.416552,89668.0,89666.0,0.00892]
[1731884919301,0.417552,89668.0,89666.0,0.00892]
[1731884919509,0.55071285,89668.0,89666.0,0.00892]
[1731884919704,0.752112,89668.0,89666.0,0.00892]
[1731884920029,0.88115333,89668.0,89666.0,0.00892]
[1731884920407,0.055764,89650.0,89649.0,0.00167306]
[1731884921325,0.055764,89650.0,89649.0,0.00176886]
[1731884921920,0.056764,89650.0,89649.0,0.01276886]
[1731884922222,0.056764,89650.0,89649.0,0.02876886]
[1731884923220,0.056764,89650.0,89649.0,0.03768886]
[1731884924013,0.001,89650.0,89649.0,0.0360158]
[1731884926308,0.001,89650.0,89649.0,0.3968158]
[1731884926913,0.001,89650.0,89649.0,0.0360158]
[1731884928023,0.3618,89650.0,89649.0,8e-07]
[1731884928316,0.82548133,89650.0,89649.0,8e-07]
[1731884928618,0.82548133,89650.0,89622.0,0.0302]
[1731884928619,0.055776,89630.0,89622.0,0.0302]
[1731884928832,0.055776,89630.0,89613.0,0.02398968]
[1731884928833,0.055786,89615.0,89613.0,0.05746047]
[1731884929120,0.00013471,89620.0,89617.0,0.055784]
[1731884929323,0.00013471,89620.0,89618.0,0.055783]
[1731884929520,0.15769471,89620.0,89618.0,0.055783]
[1731884929730,0.16424,89619.0,89618.0,0.416583]
[1731884930509,0.16424,89619.0,89618.0,0.425503]
[1731884930913,0.16428,89619.0,89618.0,0.425503]
[1731884931420,0.16828,89619.0,89618.0,0.450383]
[1731884932229,0.16828,89619.0,89618.0,0.3946]
[1731884932627,0.17228,89619.0,89618.0,0.3956]
[1731884933932,0.17228,89619.0,89618.0,0.0348]
[1731884934119,0.16828,89619.0,89618.0,0.0348]
[1731884934422,0.17228,89619.0,89618.0,0.0348]
[1731884935218,0.16828,89619.0,89618.0,0.0348]
[1731884935513,0.17428,89619.0,89618.0,0.0348]
[1731884936129,0.17028,89619.0,89618.0,0.0338]
[1731884936338,0.01,89619.0,89618.0,0.0348]
[1731884936514,0.17428,89619.0,89618.0,0.0348]
[1731884941654,0.30332133,89619.0,89618.0,0.0348]
[1731884942235,0.63808133,89619.0,89618.0,0.0348]
[1731884942740,0.67265997,89619.0,89618.0,0.0348]
[1731884942920,0.33793997,89619.0,89618.0,0.0348]
[1731884943125,0.17361997,89619.0,89618.0,0.0348]
[1731884943329,0.20889864,89619.0,89618.0,0.0348]
[1731884943931,0.17432,89619.0,89618.0,0.0348]
[1731884944234,0.01,89619.0,89618.0,0.0348]
[1731884944419,0.01,89619.0,89618.0,0.73036]
[1731884945235,0.0052,89635.0,89634.0,0.055774]
[1731884945538,0.220087,89645.0,89636.0,0.055772]
[1731884945923,0.220087,89645.0,89634.0,0.3608]
[1731884945924,0.3608,89648.0,89634.0,0.3608]
[1731884946118,0.16428,89644.0,89626.0,0.3608]
[1731884946319,0.055771,89638.0,89629.0,0.055776]
[1731884946529,0.004,89635.0,89634.0,0.001]
[1731884947232,0.007,89635.0,89634.0,0.056774]
[1731884947626,0.007,89635.0,89634.0,0.001]
[1731884947828,0.003,89635.0,89626.0,0.3608]
[1731884948023,0.055778,89628.0,89626.0,0.3608]
[1731884948926,0.006,89635.0,89626.0,0.416578]
[1731884948927,0.061773,89635.0,89626.0,0.416578]
[1731884949130,0.16428,89634.0,89632.0,0.055774]
[1731884949328,0.16428,89634.0,89626.0,0.3608]
[1731884949836,0.16428,89634.0,89632.0,0.055775]
[1731884950622,0.003,89634.0,89632.0,0.12904133]
[1731884950836,0.003,89634.0,89633.0,0.055774]
[1731884951143,0.007,89634.0,89633.0,0.055774]
[1731884951440,0.007,89634.0,89633.0,0.080664]
[1731884952436,0.007,89634.0,89633.0,0.09112529]
[1731884955831,0.062774,89634.0,89633.0,0.03535129]
[1731884956138,0.062774,89634.0,89633.0,0.03535147]
[1731884956344,0.062774,89634.0,89633.0,0.02489]
[1731884956731,0.059774,89634.0,89633.0,0.02489]
[1731884956932,0.056774,89634.0,89633.0,0.03089]
[1731884957134,0.056774,89634.0,89633.0,0.03489]
[1731884957449,0.056774,89634.0,89633.0,0.02889]
[1731884957450,0.058774,89634.0,89633.0,0.02889]
[1731884957951,0.062774,89634.0,89633.0,0.02489]
[1731884959745,0.059774,89634.0,89633.0,0.02489]
[1731884959945,0.062774,89634.0,89633.0,0.02489]
[1731884960339,0.059774,89634.0,89633.0,0.02489]
[1731884960642,0.055777,89628.0,89627.0,0.0052]
[1731884960947,0.423574,89634.0,89614.0,0.00011454]
[1731884960948,0.13330319,89630.0,89614.0,0.00011454]
[1731884961134,0.055785,89616.0,89615.0,0.01046449]
[1731884961335,0.055785,89616.0,89614.0,0.00011454]
[1731884961545,0.0639,89615.0,89614.0,0.00011454]
[1731884961742,0.0639,89615.0,89600.0,0.1]
[1731884961743,0.055794,89601.0,89600.0,0.1]
[1731884961935,0.055794,89601.0,89600.0,0.11046656]
[1731884961936,0.226914,89601.0,89600.0,0.11046656]
[1731884962342,0.226914,89601.0,89600.0,0.1]
[1731884962542,0.055794,89601.0,89600.0,0.47126666]
[1731884962838,0.06450001,89615.0,89600.0,0.4609236]
[1731884962839,0.13332957,89614.0,89600.0,0.4609236]
[1731884963034,0.20392,89615.0,89607.0,0.05579]
[1731884963240,0.055788,89612.0,89607.0,0.05579]
[1731884963653,0.055788,89612.0,89608.0,0.01046556]
[1731884963841,0.055788,89612.0,89607.0,0.05579]
[1731884964036,0.055788,89612.0,89608.0,0.06625487]
[1731884964353,0.05579,89608.0,89601.0,0.055794]
[1731884964543,0.05579,89608.0,89604.0,0.055792]
[1731884964851,0.05579,89608.0,89605.0,0.01046588]
[1731884965046,0.004,89612.0,89610.0,0.055788]
[1731884965237,0.13332957,89628.0,89611.0,0.70606588]
[1731884965433,0.17112,89634.0,89611.0,0.3608]
[1731884965637,0.0319,89627.0,89619.0,0.3608]
[1731884965840,0.055781,89622.0,89616.0,0.055784]
[1731884966048,0.055781,89622.0,89617.0,0.055783]
[1731884966248,0.055781,89622.0,89619.0,0.3608]
[1731884966435,0.055781,89622.0,89619.0,0.416582]
[1731884966641,0.055781,89622.0,89620.0,0.055782]
[1731884967048,0.055782,89620.0,89615.0,0.055785]
[1731884967247,0.055782,89620.0,89617.0,0.055784]
[1731884967952,0.055785,89616.0,89612.0,0.3608]
[1731884968146,0.003,89622.0,89613.0,0.01046464]
[1731884968147,0.055786,89615.0,89613.0,0.01046464]
[1731884968347,0.055786,89615.0,89614.0,0.01046464]
[1731884968851,0.3608,89617.0,89597.0,0.0321]
[1731884969050,0.3608,89617.0,89602.0,0.3608]
[1731884969249,0.055789,89609.0,89604.0,0.055792]
[1731884969444,0.3608,89617.0,89613.0,0.002]
[1731884969644,0.055785,89616.0,89614.0,0.01938522]
[1731884969849,0.055785,89616.0,89615.0,0.01046522]
[1731884970056,0.055785,89616.0,89614.0,0.00892]
[1731884970450,0.055785,89616.0,89615.0,0.00892]
[1731884971251,0.057785,89616.0,89615.0,0.00892]
[1731884971462,0.057785,89616.0,89615.0,0.01938528]
[1731884971759,0.057785,89616.0,89615.0,0.00892]
[1731884971945,0.057785,89616.0,89615.0,0.01938502]
[1731884972142,0.057785,89616.0,89615.0,0.00892]
[1731884972143,0.231945,89616.0,89615.0,0.00892]
[1731884972640,0.232945,89616.0,89615.0,0.00892]
[1731884972841,0.567705,89616.0,89614.0,0.00892]
[1731884973041,0.055794,89601.0,89600.0,0.1001236]
[1731884973241,0.055794,89601.0,89600.0,0.11058958]
[1731884973752,0.055794,89601.0,89600.0,0.1001236]
[1731884975360,0.006,89616.0,89600.0,0.95076493]
[1731884975568,0.006,89616.0,89615.0,0.055785]
[1731884975767,0.003,89616.0,89612.0,0.3608]
[1731884976063,0.3608,89614.0,89613.0,0.01046653]
[1731884976251,0.3608,89614.0,89600.0,0.4609236]
[1731884976252,0.055794,89601.0,89600.0,0.1001236]
[1731884977459,0.057794,89601.0,89600.0,0.1001236]
[1731884979261,0.058794,89601.0,89600.0,0.1001236]
[1731884983459,0.0558,89592.0,89591.0,0.0052]
[1731884983661,0.055805,89583.0,89582.0,0.0052]
[1731884983866,0.055805,89583.0,89577.0,0.055809]
[1731884984169,0.055806,89582.0,89577.0,0.055809]
[1731884984565,0.055806,89582.0,89573.0,0.09133361]
[1731884984566,0.055806,89582.0,89581.0,8.069e-05]
[1731884984959,0.00010098,89582.0,89581.0,0.4470143]
[1731884986066,0.00110098,89582.0,89581.0,0.4610143]
[1731884986668,0.00310098,89582.0,89581.0,0.4660143]
[1731884987552,0.05890698,89582.0,89581.0,0.01908069]
[1731884987763,0.22686698,89582.0,89581.0,0.01908069]
[1731884988762,0.22586698,89582.0,89581.0,0.00508069]
[1731884988963,0.22686698,89582.0,89581.0,0.01508069]
[1731884995065,0.05890698,89582.0,89581.0,0.01508069]
[1731884995264,0.17110098,89582.0,89581.0,0.07088769]
[1731884997474,0.00310098,89582.0,89581.0,0.07088769]
[1731884997860,1e-08,89584.0,89583.0,0.055805]
[1731884998065,0.223795,89599.0,89583.0,0.14193861]
[1731884998264,0.223795,89599.0,89597.0,0.3608]
[1731884998465,0.168,89599.0,89597.0,0.416596]
[1731884998672,0.223795,89599.0,89597.0,0.416596]
[1731884999071,0.226795,89599.0,89597.0,0.416596]
[1731884999669,0.226795,89599.0,89597.0,0.3608]
[1731884999670,0.223795,89599.0,89597.0,0.3608]
[1731884999872,0.226795,89599.0,89597.0,0.3608]
[1731885000065,0.226795,89599.0,89585.0,0.055804]
[1731885000066,0.171,89599.0,89585.0,0.055804]
[1731885000377,0.055802,89589.0,89585.0,0.055804]
[1731885000580,0.055802,89589.0,89586.0,0.055803]
[1731885000776,0.055798,89595.0,89591.0,0.0558]
[1731885001086,0.055797,89597.0,89596.0,0.055797]
[1731885001285,0.3061673,89599.0,89592.0,0.3608]
[1731885001286,0.173,89599.0,89592.0,0.3608]
[1731885001578,0.055798,89595.0,89593.0,0.055799]
[1731885001784,0.055798,89595.0,89592.0,0.3608]
[1731885001785,0.226796,89599.0,89595.0,0.055798]
[1731885002076,0.055799,89593.0,89592.0,0.3608]
[1731885003473,0.055803,89588.0,89585.0,0.19826247]
[1731885003680,0.1331673,89592.0,89581.0,0.36160069]
[1731885003895,0.3608,89595.0,89581.0,8.069e-05]
[1731885003896,0.055806,89582.0,89581.0,8.069e-05]
[1731885004067,0.79674691,89582.0,89581.0,8.069e-05]
[1731885004276,0.216646,89582.0,89581.0,8.069e-05]
[1731885004484,0.3499631,89582.0,89581.0,8.069e-05]
[1731885004784,0.577446,89582.0,89581.0,8.069e-05]
[1731885004976,0.577446,89582.0,89581.0,0.00108069]
[1731885005182,0.52364,89582.0,89581.0,0.00808069]
[1731885005376,0.65695019,89582.0,89581.0,0.00808069]
[1731885005583,0.002,89582.0,89581.0,0.00808069]
[1731885006492,0.003,89582.0,89581.0,0.01708069]
[1731885006991,0.416606,89583.0,89581.0,0.4590213]
[1731885006992,0.00064,89583.0,89581.0,0.4590213]
[1731885007176,8.967e-05,89600.0,89583.0,0.055805]
[1731885007481,8.967e-05,89600.0,89599.0,0.80773361]
[1731885007482,8.966e-05,89600.0,89599.0,0.80773361]
[1731885007687,8.966e-05,89600.0,89599.0,1.14257361]
[1731885007878,0.055798,89594.0,89593.0,0.26717845]
[1731885008073,0.055798,89594.0,89585.0,0.20036911]
[1731885008074,0.055803,89587.0,89585.0,0.20036911]
[1731885008276,0.055806,89582.0,89581.0,0.01008069]
[1731885008691,0.16084,89582.0,89581.0,0.01008069]
[1731885009579,0.16384,89582.0,89581.0,8.069e-05]
[1731885009778,0.16384,89582.0,89581.0,0.00908069]
[1731885010884,0.16584,89582.0,89581.0,8.069e-05]
[1731885011085,0.221646,89582.0,89581.0,8.069e-05]
[1731885011375,0.221646,89582.0,89581.0,0.2004498]
[1731885011588,0.16484,89582.0,89581.0,0.2004498]
[1731885011886,0.16484,89582.0,89581.0,8.069e-05]
[1731885012080,0.16284,89582.0,89581.0,8.069e-05]
[1731885012279,0.16484,89582.0,89581.0,8.069e-05]
[1731885012682,0.16284,89582.0,89581.0,8.069e-05]
[1731885012889,0.16484,89582.0,89581.0,8.069e-05]
[1731885013793,0.220646,89582.0,89581.0,0.01046865]
[1731885014091,0.055807,89580.0,89579.0,0.32136865]
[1731885014978,0.33488,89580.0,89570.0,0.20060221]
[1731885015184,0.33488,89580.0,89564.0,0.001]
[1731885015185,0.08613361,89571.0,89564.0,0.001]
[1731885015387,0.055817,89564.0,89563.0,0.20050303]
[1731885015589,0.055818,89562.0,89560.0,0.20050303]
[1731885015986,0.24697361,89564.0,89557.0,0.00167482]
[1731885016197,0.24697361,89564.0,89555.0,0.00012534]
[1731885016486,0.055822,89557.0,89555.0,0.00012534]
[1731885016692,0.24697361,89564.0,89555.0,0.00012534]
[1731885016693,0.055818,89563.0,89555.0,0.20060917]
[1731885016994,0.055818,89563.0,89558.0,0.3608]
[1731885017385,0.16084,89564.0,89559.0,0.05582]
[1731885017593,0.16084,89564.0,89560.0,0.055819]
[1731885017979,0.055812,89573.0,89566.0,0.055816]
[1731885018286,0.3608,89580.0,89566.0,0.055816]
[1731885018287,0.16088,89575.0,89566.0,0.25629883]
[1731885018493,0.21669,89575.0,89567.0,0.56128383]
[1731885018689,0.16088,89583.0,89577.0,0.055809]
[1731885018895,0.16088,89583.0,89579.0,0.3608]
[1731885019082,0.16088,89583.0,89581.0,0.055806]
[1731885019283,0.16088,89583.0,89579.0,0.3608]
[1731885019284,0.055807,89581.0,89579.0,0.3608]
[1731885019784,0.055807,89581.0,89568.0,0.3305764]
[1731885019785,0.3608,89581.0,89575.0,0.20029404]
[1731885019996,0.055813,89571.0,89568.0,0.20029404]
[1731885020190,0.055813,89571.0,89567.0,0.3608]
[1731885020392,0.16088,89575.0,89568.0,0.055815]
[1731885020701,0.16088,89575.0,89567.0,0.44693361]
[1731885020702,0.16088,89578.0,89572.0,0.055812]
[1731885020887,0.002,89575.0,89574.0,0.20029404]
[1731885021287,0.055809,89577.0,89574.0,0.20029404]
[1731885021501,0.055809,89577.0,89575.0,0.3608]
[1731885022589,0.057809,89577.0,89575.0,0.3608]
[1731885022995,0.059809,89577.0,89575.0,0.3608]
[1731885023295,0.220689,89577.0,89575.0,0.3608]
[1731885023483,0.05581,89575.0,89573.0,0.20029404]
[1731885023688,0.25101361,89577.0,89567.0,0.3608]
[1731885023884,0.055818,89563.0,89561.0,0.20029404]
[1731885024091,0.055812,89573.0,89557.0,0.20029404]
[1731885024092,0.51093361,89562.0,89557.0,0.20029404]
[1731885024294,0.055822,89556.0,89555.0,0.00012534]
[1731885024500,0.216662,89556.0,89555.0,0.00012534]
[1731885026505,0.218662,89556.0,89555.0,0.01112534]
[1731885027512,0.220662,89556.0,89555.0,0.01512534]
[1731885027700,0.16484,89556.0,89555.0,0.01512534]
[1731885028007,0.004,89556.0,89555.0,0.01512534]
[1731885030409,0.004,89556.0,89555.0,0.37592534]
[1731885031115,0.004,89556.0,89555.0,0.64283062]
[1731885031311,0.004,89556.0,89555.0,0.37592534]
[1731885031809,0.0052,89560.0,89555.0,1.01092534]
[1731885032011,0.0052,89560.0,89559.0,0.50275361]
[1731885032204,0.15492,89572.0,89559.0,0.82893382]
[1731885032416,0.15492,89572.0,89571.0,0.416613]
[1731885032806,0.24105361,89572.0,89571.0,0.2071]
[1731885033010,0.001,89560.0,89552.0,0.05196378]
[1731885033212,0.001,89560.0,89527.0,0.03464106]
[1731885033213,0.05584,89528.0,89527.0,0.03464106]
[1731885033415,0.05584,89528.0,89526.0,0.3608]
[1731885033416,0.21076,89528.0,89526.0,0.3608]
[1731885034017,0.21076,89528.0,89527.0,0.00010101]
[1731885034220,0.21076,89528.0,89527.0,0.03100101]
[1731885035118,0.21076,89528.0,89527.0,0.03700101]
[1731885035313,0.21176,89528.0,89527.0,0.03700101]
[1731885035514,0.21176,89528.0,89527.0,0.03800101]
[1731885036234,0.21176,89528.0,89505.0,0.004]
[1731885036235,0.15592,89528.0,89505.0,0.004]
[1731885036420,0.15592,89528.0,89480.0,0.3349686]
[1731885036421,0.7216,89507.0,89485.0,0.0621]
[1731885036717,0.055856,89501.0,89485.0,0.0621]
[1731885036908,0.210776,89501.0,89485.0,0.0621]
[1731885037109,0.210776,89501.0,89487.0,0.055865]
[1731885037307,0.210776,89501.0,89488.0,0.00010942]
[1731885038024,0.211776,89501.0,89500.0,0.302]
[1731885038807,0.213776,89501.0,89500.0,0.302]
[1731885042024,0.15792,89501.0,89500.0,0.302]
[1731885042206,0.72216001,89507.0,89503.0,0.055855]
[1731885042410,0.7216,89507.0,89503.0,0.055855]
[1731885042608,0.055849,89514.0,89500.0,0.302]
[1731885042814,0.3608,89520.0,89511.0,0.05585]
[1731885043016,0.05752143,89519.0,89512.0,0.117149]
[1731885043212,0.00167643,89519.0,89512.0,0.0613]
[1731885043411,0.26247643,89520.0,89518.0,0.055846]
[1731885043607,0.3609371,89531.0,89523.0,0.055842]
[1731885043810,0.055839,89530.0,89524.0,0.055842]
[1731885044220,0.0001371,89531.0,89521.0,0.3608]
[1731885044424,0.055831,89542.0,89537.0,0.055834]
[1731885044613,0.3608,89553.0,89529.0,0.3608]
[1731885044817,0.3608,89553.0,89540.0,0.055832]
[1731885044818,0.055827,89548.0,89540.0,0.055832]
[1731885045014,0.3608,89553.0,89540.0,0.055832]
[1731885045209,0.3608,89553.0,89529.0,0.3608]
[1731885045210,0.3608,89553.0,89533.0,0.055836]
[1731885045416,0.00012822,89548.0,89533.0,0.055836]
[1731885045617,0.058831,89542.0,89529.0,0.3608]
[1731885045817,0.003,89542.0,89530.0,0.00012915]
[1731885046113,0.003,89542.0,89540.0,0.055832]
[1731885047115,0.003,89542.0,89533.0,0.055836]
[1731885047319,0.055837,89532.0,89530.0,0.00012915]
[1731885048525,0.05584,89528.0,89527.0,0.0052]
[1731885048717,0.055836,89533.0,89527.0,0.00893]
[1731885048924,0.05584,89528.0,89527.0,0.00893]
[1731885049121,0.0052,89541.0,89527.0,0.00893]
[1731885049122,0.003,89532.0,89527.0,0.00893]
[1731885049426,0.003,89532.0,89530.0,0.055838]
[1731885049427,0.006,89532.0,89530.0,0.055838]
[1731885049614,0.006,89532.0,89531.0,0.00011673]
[1731885050014,0.006,89532.0,89531.0,0.00073673]
[1731885050829,0.003,89532.0,89531.0,0.00073673]
[1731885051132,0.058837,89533.0,89531.0,0.00073673]
[1731885051521,0.003,89532.0,89531.0,0.00073673]
[1731885051721,0.007,89532.0,89531.0,0.00073673]
[1731885052119,0.003,89532.0,89531.0,0.00073673]
[1731885052328,0.055837,89533.0,89532.0,0.055837]
[1731885052329,0.007,89533.0,89532.0,0.055837]
[1731885052941,0.0052,89541.0,89540.0,0.055832]
[1731885053226,0.00012822,89548.0,89545.0,0.055828]
[1731885053423,0.00012822,89548.0,89536.0,0.366]
[1731885053424,0.00012822,89548.0,89546.0,0.055828]
[1731885054825,0.0052,89558.0,89557.0,0.055821]
[1731885055139,0.00167551,89565.0,89564.0,0.055817]
[1731885055321,0.3608,89567.0,89566.0,0.055816]
[1731885057029,0.3608,89567.0,89562.0,0.055818]
[1731885057259,0.055816,89566.0,89563.0,0.055817]
[1731885057426,0.055813,89571.0,89565.0,0.055816]
[1731885057629,0.055813,89571.0,89567.0,0.055815]
[1731885058132,0.055814,89570.0,89567.0,0.055815]
[1731885058827,0.055814,89570.0,89561.0,0.0326]
[1731885058828,0.055814,89570.0,89568.0,0.055814]
[1731885059025,0.004,89571.0,89570.0,0.055813]
[1731885059338,0.00254237,89573.0,89572.0,0.055812]
[1731885059534,0.055799,89593.0,89571.0,0.39862]
[1731885059727,0.055799,89593.0,89591.0,0.0558]
[1731885059922,0.3608,89595.0,89593.0,0.055799]
[1731885060324,0.3608,89595.0,89579.0,0.12946241]
[1731885060536,0.055801,89591.0,89579.0,0.12946241]
[1731885060726,0.003,89593.0,89579.0,0.12946241]
[1731885060934,0.003,89593.0,89592.0,0.0558]
[1731885061628,0.003,89591.0,89590.0,0.055801]
[1731885061829,0.3638,89591.0,89572.0,0.002]
[1731885062026,0.3638,89591.0,89570.0,0.00010082]
[1731885062027,0.05581,89576.0,89573.0,0.055811]
[1731885062227,0.05581,89576.0,89574.0,0.0574855]
[1731885062538,0.3608,89582.0,89580.0,0.055807]
[1731885062751,0.3608,89582.0,89574.0,0.0016745]
[1731885063037,0.05581,89576.0,89574.0,0.0016745]
[1731885063434,0.49026241,89582.0,89570.0,0.12956323]
[1731885063435,0.41716601,89582.0,89570.0,0.12956323]
[1731885063739,0.001,89591.0,89571.0,0.3608]
[1731885063926,0.001,89591.0,89589.0,0.055801]
[1731885064136,0.05579,89608.0,89589.0,0.355801]
[1731885064333,0.05579,89608.0,89594.0,0.055798]
[1731885064547,0.05579,89608.0,89594.0,0.390638]
[1731885065245,0.05579,89608.0,89594.0,0.055798]
[1731885065426,0.05579,89608.0,89594.0,0.390638]
[1731885065632,0.00210511,89595.0,89594.0,0.390638]
[1731885066151,0.00167457,89613.0,89612.0,0.055787]
[1731885066431,0.31713744,89640.0,89612.0,0.69556]
[1731885066432,0.15168,89640.0,89612.0,0.69556]
[1731885066637,0.055775,89632.0,89627.0,0.055778]
[1731885066938,0.055779,89625.0,89624.0,0.00012951]
[1731885067333,0.3608,89628.0,89624.0,0.00012951]
[1731885067832,0.055778,89627.0,89624.0,0.05590851]
[1731885068146,0.002,89625.0,89624.0,0.00012951]
[1731885068330,0.003,89625.0,89624.0,0.00012951]
[1731885068743,0.003,89625.0,89624.0,0.25488405]
[1731885068930,0.002,89625.0,89624.0,0.25488405]
[1731885069334,0.002,89625.0,89624.0,0.00012951]
[1731885069535,0.055779,89626.0,89624.0,0.00012951]
[1731885070140,0.001,89627.0,89624.0,0.00012951]
[1731885070338,0.002,89625.0,89624.0,0.05590951]
[1731885070731,0.002,89625.0,89624.0,0.00012951]
[1731885071135,0.002,89626.0,89624.0,0.00012951]
[1731885071335,0.001,89625.0,89624.0,0.00012951]
[1731885071744,0.0312,89625.0,89624.0,0.00012951]
[1731885072242,0.057779,89626.0,89624.0,0.00012951]
[1731885072446,0.058779,89626.0,89624.0,0.00012951]
[1731885072752,0.058779,89626.0,89625.0,0.055779]
[1731885072753,0.003,89626.0,89625.0,0.055779]
[1731885072962,0.056779,89625.0,89624.0,0.00012951]
[1731885073248,0.058779,89625.0,89624.0,0.00012951]